bitfinex-derivatives/quotes_SOLF0:USTF0_20251207
["timestamp","ask_amount","ask_price","bid_price","bid_amount"]
[1765141209836,0.29594807,136.12,136.1,3.32538842]
[1765141210040,0.24,136.11,136.1,0.05538842]
[1765141210529,0.18,136.1,136.05,3.27]
[1765141210735,0.18,136.09,136.05,3.27]
[1765141210936,0.18,136.07,136.05,3.27]
[1765141211135,0.18,136.07,136.03,2.19746013]
[1765141211437,0.18,136.07,136.03,5.46746013]
[1765141211624,0.23566662,136.06,136.04,0.04971251]
[1765141213034,0.05566662,136.06,136.04,3.31971251]
[1765141217446,0.23566662,136.06,136.04,3.31971251]
[1765141217643,0.18,136.05,136.04,0.04971251]
[1765141218143,6.7946,136.05,136.04,0.04971251]
[1765141218546,0.23566662,136.06,136.04,3.12971251]
[1765141218741,0.05566662,136.06,136.04,3.12971251]
[1765141218943,0.05566662,136.06,136.05,3.08]
[1765141219736,0.05566662,136.06,136.04,5.32717264]
[1765141222953,0.23566662,136.06,136.04,3.12971251]
[1765141223158,0.18,136.05,136.04,0.04971251]
[1765141224138,0.18,136.05,135.99,3.08]
[1765141224345,0.18,136.03,135.97,2.19746013]
[1765141225256,0.04962957,136.01,135.99,0.05009362]
[1765141225448,0.22962957,136.01,135.99,0.05009362]
[1765141226346,0.18,136.0,135.99,0.05009362]
[1765141231553,0.04962957,136.01,135.99,3.13009362]
[1765141231750,0.22962957,136.01,135.99,0.05009362]
[1765141231950,6.84642957,136.01,135.99,0.05009362]
[1765141232451,0.18,136.0,135.99,0.05009362]
[1765141233051,2.37746013,136.0,135.99,0.05009362]
[1765141242466,0.18,136.0,135.99,0.05009362]
[1765141246770,0.18,136.0,135.99,9.362e-05]
[1765141248771,63.02,136.0,135.99,9.362e-05]
[1765141254570,0.13,135.97,135.91,12.37160724]
[1765141254772,0.13,135.96,135.91,3.34]
[1765141255467,0.13,135.96,135.92,0.05153339]
[1765141255673,0.04779071,135.95,135.93,3.34]
[1765141255970,2.36746013,136.01,135.95,3.34]
[1765141256768,2.36746013,136.01,135.96,3.34]
[1765141256971,0.05651961,136.0,135.98,3.34]
[1765141257466,6.6179,135.99,135.98,3.34]
[1765141257662,6.7979,135.99,135.97,0.04924038]
[1765141257973,6.6179,135.99,135.97,3.07924038]
[1765141260471,0.18,135.98,135.97,0.04924038]
[1765141261072,0.18,135.95,135.92,3.03]
[1765141261680,0.18,135.95,135.91,3.03]
[1765141262178,0.05569177,135.94,135.92,0.04923958]
[1765141262672,0.05569177,135.94,135.92,3.07923958]
[1765141264873,6.6184,135.98,135.92,3.07923958]
[1765141265072,6.7984,135.98,135.94,3.03]
[1765141265876,6.67270769,135.97,135.94,3.03]
[1765141266380,6.85270769,135.97,135.94,3.03]
[1765141267279,6.85270769,135.97,135.94,12.06160724]
[1765141267484,6.85270769,135.97,135.94,3.03]
[1765141269185,6.85270769,135.97,135.94,12.06160724]
[1765141269389,6.85270769,135.97,135.94,3.03]
[1765141270186,6.85270769,135.97,135.94,12.06160724]
[1765141270387,6.85270769,135.97,135.94,3.03]
[1765141271082,0.18,135.95,135.93,9.03160724]
[1765141272488,6.7997,135.95,135.93,9.03160724]
[1765141272986,0.18,135.94,135.92,12.11084682]
[1765141274698,6.8001,135.94,135.92,12.11084682]
[1765141277202,6.6201,135.94,135.92,12.11084682]
[1765141279193,6.6201,135.94,135.92,3.07923958]
[1765141279900,6.8001,135.94,135.92,3.07923958]
[1765141281701,0.18,135.93,135.92,0.04923958]
[1765141284603,3.6223014,135.93,135.92,0.04923958]
[1765141285197,6.6212,135.92,135.88,12.20160724]
[1765141285500,0.18,135.91,135.88,9.03160724]
[1765141286206,0.18,135.9,135.88,9.03160724]
[1765141286400,0.18,135.9,135.88,0.05332575]
[1765141286902,6.8021,135.9,135.88,0.05332575]
[1765141287096,6.8021,135.9,135.88,3.22332575]
[1765141287492,6.6221,135.9,135.88,3.22332575]
[1765141288489,6.8021,135.9,135.88,0.05332575]
[1765141288992,0.18,135.89,135.88,0.05332575]
[1765141289390,3.6223014,135.89,135.88,0.05332575]
[1765141289605,0.13,135.87,135.84,9.03160724]
[1765141290599,6.7541,135.86,135.84,9.08001311]
[1765141290899,0.13,135.85,135.84,0.04840587]
[1765141291101,3.5723014,135.85,135.84,0.04840587]
[1765141291298,0.13,135.84,135.81,3.17]
[1765141292400,6.7558,135.83,135.81,3.22623015]
[1765141293300,0.13,135.82,135.81,0.05623015]
[1765141293502,6.7558,135.83,135.81,0.05623015]
[1765141293806,0.13,135.82,135.81,0.05623015]
[1765141298204,6.6267,135.81,135.76,3.17]
[1765141298404,62.92,135.81,135.76,3.17]
[1765141298606,63.0,135.81,135.76,3.17]
[1765141299008,0.08,135.8,135.76,3.17]
[1765141299409,0.08,135.8,135.77,3.22657595]
[1765141299410,0.0540839,135.79,135.77,3.22657595]
[1765141306713,0.1340839,135.79,135.77,0.05657595]
[1765141306912,0.08,135.78,135.77,0.05657595]
[1765141309207,10.2039853,135.79,135.77,3.37657595]
[1765141309516,10.2039853,135.79,135.77,0.05657595]
[1765141310209,0.08,135.78,135.77,0.05657595]
[1765141310512,0.02,135.75,135.68,3.32]
[1765141310715,169.5477014,135.78,135.68,3.32]
[1765141311115,169.5477014,135.78,135.68,6.7623014]
[1765141311315,6.6288,135.76,135.7,3.32]
[1765141311621,62.98,135.79,135.73,3.32]
[1765141311811,169.6069014,135.8,135.73,3.32]
[1765141312514,6.75702162,135.78,135.75,3.36832189]
[1765141314023,6.6284,135.77,135.75,3.36832189]
[1765141314318,0.08,135.76,135.75,0.04832189]
[1765141314716,6.6284,135.77,135.75,0.04832189]
[1765141315622,6.6284,135.77,135.75,3.36832189]
[1765141316325,6.7084,135.77,135.75,3.36832189]
[1765141317720,0.08,135.76,135.75,0.04832189]
[1765141319720,3.5223014,135.76,135.75,0.04832189]
[1765141319926,0.08,135.74,135.69,3.32]
[1765141320926,0.0520008,135.73,135.71,3.32]
[1765141321629,6.6825008,135.73,135.71,3.32]
[1765141322721,0.0520008,135.73,135.71,3.32]
[1765141327931,2.29030737,135.72,135.7,0.04889256]
[1765141328624,0.08,135.71,135.7,0.04889256]
[1765141338541,6.6341,135.66,135.54,103.2778]
[1765141338836,6.6341,135.66,135.53,110.38]
[1765141338837,5.31030737,135.64,135.53,88.34]
[1765141339041,2.21030737,135.62,135.56,2.21030737]
[1765141339229,2.21030737,135.62,135.55,2.21030737]
[1765141339429,5.31030737,135.64,135.57,2.21030737]
[1765141339831,63.02,135.69,135.63,2.21030737]
[1765141340642,6.6317,135.71,135.65,2.21030737]
[1765141340831,0.0497052,135.69,135.67,3.24563733]
[1765141348750,6.6298,135.74,135.69,3.19]
[1765141348943,3.1,135.73,135.69,3.19]
[1765141349148,6.6298,135.74,135.69,3.19]
[1765141349752,0.05109643,135.73,135.71,3.19]
[1765141356057,8.83930737,135.76,135.71,3.19]
[1765141356365,2.21030737,135.77,135.72,3.19]
[1765141356763,6.6281,135.78,135.73,3.19]
[1765141357258,0.05202269,135.77,135.75,3.19]
[1765141357662,3.1,135.76,135.74,3.24435476]
[1765141357964,5.36233006,135.77,135.74,3.24435476]
[1765141358264,9.7291,135.76,135.74,0.05435476]
[1765141360762,9.7291,135.76,135.74,3.24435476]
[1765141362361,9.7291,135.76,135.74,0.05435476]
[1765141362663,2.21030737,135.75,135.74,0.05435476]
[1765141362857,5.31030737,135.75,135.74,0.05435476]
[1765141363062,3.1,135.73,135.69,3.19]
[1765141363264,3.1,135.71,135.68,3.19]
[1765141364064,3.15640187,135.71,135.68,3.24328676]
[1765141364261,9.78780187,135.71,135.68,3.24328676]
[1765141365164,6.68780187,135.71,135.68,3.24328676]
[1765141366464,9.78780187,135.71,135.68,3.24328676]
[1765141367267,11.94220737,135.7,135.68,0.05328676]
[1765141367573,3.1,135.69,135.68,0.05328676]
[1765141382388,3.32,135.67,135.62,12.48026419]
[1765141382593,3.32,135.66,135.63,3.36]
[1765141382798,3.32,135.66,135.61,12.48026419]
[1765141382990,3.32,135.64,135.61,12.48026419]
[1765141383387,3.36742904,135.64,135.62,3.36]
[1765141383992,10.00242904,135.64,135.61,12.53259585]
[1765141384189,3.32,135.62,135.61,0.05233166]
[1765141385404,106.71615808,135.64,135.61,0.05233166]
[1765141385405,9.9556,135.63,135.61,0.05233166]
[1765141386696,3.32,135.62,135.61,0.05233166]
[1765141387094,9.9556,135.63,135.61,0.05233166]
[1765141387894,3.32,135.62,135.61,0.05233166]
[1765141390595,0.04742904,135.64,135.61,3.41233166]
[1765141391191,10.00232904,135.64,135.61,0.05233166]
[1765141391397,3.32,135.63,135.61,0.05233166]
[1765141392094,3.32,135.62,135.61,0.05233166]
[1765141401606,6.6355,135.63,135.62,3.33]
[1765141401906,3.30742904,135.64,135.62,3.33]
[1765141402703,0.04742904,135.64,135.62,3.33]
[1765141406003,66.34,135.69,135.63,3.33]
[1765141406300,6.632,135.7,135.64,3.33]
[1765141406606,3.26,135.71,135.64,3.33]
[1765141406908,0.05597957,135.69,135.67,3.33]
[1765141409010,3.31597957,135.69,135.66,0.04649967]
[1765141410209,9.8929,135.68,135.66,0.04649967]
[1765141411303,3.26,135.67,135.66,0.04649967]
[1765141412006,6.71972904,135.67,135.66,0.04649967]
[1765141413314,3.26,135.65,135.61,3.33]
[1765141413502,6.71972904,135.68,135.61,3.33]
[1765141413704,3.26,135.68,135.62,3.33]
[1765141414506,0.05501684,135.66,135.65,3.33]
[1765141419622,0.05501684,135.66,135.64,0.04725299]
[1765141420116,3.31501684,135.66,135.64,0.04725299]
[1765141420516,9.94891684,135.66,135.64,0.04725299]
[1765141421322,3.26,135.65,135.64,0.04725299]
[1765141422320,6.68891684,135.66,135.64,3.37725299]
[1765141422723,9.94891684,135.66,135.64,3.37725299]
[1765141422925,9.94891684,135.66,135.64,0.04725299]
[1765141423721,3.26,135.65,135.64,0.04725299]
[1765141424926,6.68891684,135.66,135.64,3.37725299]
[1765141433531,9.99891684,135.66,135.64,3.37725299]
[1765141435622,0.05501684,135.66,135.64,3.37725299]
[1765141438026,3.15501684,135.66,135.64,12.49751718]
[1765141438233,3.15501684,135.66,135.64,0.04725299]
[1765141438435,3.15501684,135.66,135.64,3.19725299]
[1765141439534,9.78881684,135.66,135.64,3.19725299]
[1765141439834,9.78881684,135.66,135.64,0.04725299]
[1765141442826,6.68881684,135.66,135.64,3.19725299]
[1765141444632,6.68881684,135.66,135.65,3.15]
[1765141445434,6.68881684,135.66,135.64,12.31751718]
[1765141445628,6.68881684,135.66,135.65,3.15]
[1765141447141,6.68881684,135.66,135.65,12.27026419]
[1765141451441,0.05501684,135.66,135.65,12.27026419]
[1765141451631,0.05501684,135.66,135.65,3.15]
[1765141452934,6.6329,135.68,135.65,3.15]
[1765141453132,6.6329,135.68,135.67,3.15]
[1765141454237,3.14997186,135.69,135.67,3.15]
[1765141454927,9.78227186,135.69,135.67,3.15]
[1765141455130,0.04997186,135.69,135.68,9.19194235]
[1765141455432,0.04997186,135.69,135.68,12.34194235]
[1765141456240,0.04997186,135.69,135.68,3.15]
[1765141462342,0.04997186,135.69,135.68,12.34194235]
[1765141465243,0.04997186,135.69,135.68,3.15]
[1765141467449,9.6809,135.72,135.69,3.2]
[1765141468038,6.6309,135.72,135.69,3.2]
[1765141468337,6.68262675,135.72,135.69,3.2]
[1765141470143,0.05172675,135.72,135.71,3.2]
[1765141470446,3.05,135.77,135.72,3.2]
[1765141471048,3.05,135.77,135.73,3.2]
[1765141471251,0.04671046,135.76,135.74,3.24962936]
[1765141471450,6.67591046,135.76,135.74,3.24962936]
[1765141471852,0.04671046,135.76,135.74,3.24962936]
[1765141472245,3.05,135.75,135.74,0.04962936]
[1765141473455,3.05,135.73,135.69,3.2]
[1765141473658,5.2619899,135.73,135.69,3.2]
[1765141473951,3.05,135.72,135.69,3.2]
[1765141474144,3.05,135.72,135.69,12.39194235]
[1765141474345,3.10054622,135.72,135.69,3.25417581]
[1765141474545,9.73134622,135.72,135.69,3.25417581]
[1765141476155,3.05,135.71,135.69,3.25417581]
[1765141476363,9.6814,135.71,135.69,0.05417581]
[1765141476552,3.05,135.7,135.69,0.05417581]
[1765141477450,9.6814,135.71,135.69,0.05417581]
[1765141478054,6.6314,135.71,135.7,3.2]
[1765141478266,0.05054622,135.72,135.7,3.2]
[1765141481161,0.05054622,135.72,135.71,66.22]
[1765141481850,0.00054622,135.72,135.71,66.22]
[1765141482050,6.6286,135.77,135.72,3.2]
[1765141482250,9.6786,135.77,135.73,3.2]
[1765141483153,9.6786,135.77,135.74,3.25452391]
[1765141483154,0.05568177,135.76,135.74,3.25452391]
[1765141490268,6.68458177,135.76,135.74,3.25452391]
[1765141499991,10.02458177,135.76,135.74,3.25452391]
[1765141501393,0.05568177,135.76,135.74,14.61113922]
[1765141501594,0.05568177,135.76,135.75,12.28462541]
[1765141502084,6.6271,135.8,135.77,3.14]
[1765141502993,6.67547515,135.8,135.77,3.19255671]
[1765141504291,9.6674,135.79,135.77,3.19255671]
[1765141504797,3.04,135.78,135.77,0.05255671]
[1765141505294,6.6274,135.79,135.77,3.19255671]
[1765141505494,9.6674,135.79,135.77,3.19255671]
[1765141516999,3.04,135.76,135.73,16.82039628]
[1765141517303,3.04,135.76,135.73,3.14]
[1765141517499,3.04,135.78,135.74,3.14]
[1765141518204,3.2208209,135.77,135.75,3.1999547]
[1765141532017,0.0508209,135.77,135.75,3.1999547]
[1765141532211,0.0508209,135.77,135.76,16.83039628]
[1765141533729,0.0508209,135.77,135.76,3.15]
[1765141535127,3.17,135.81,135.77,3.15]
[1765141536126,3.22144647,135.8,135.77,3.15]
[1765141536329,3.22144647,135.8,135.77,3.20533461]
[1765141545934,3.22144647,135.8,135.78,3.15]
[1765141547028,0.05144647,135.8,135.79,12.3295014]
[1765141547632,3.26144647,135.8,135.79,9.1795014]
[1765141548635,0.05144647,135.8,135.79,12.4395014]
[1765141549334,0.05144647,135.8,135.79,3.26]
[1765141551636,3.26144647,135.8,135.78,16.94039628]
[1765141552540,3.26144647,135.8,135.79,3.26]
[1765141554540,0.05144647,135.8,135.79,3.26]
[1765141558346,0.05144647,135.8,135.79,12.42209378]
[1765141559948,3.26144647,135.8,135.79,12.42209378]
[1765141560155,0.05144647,135.8,135.79,12.42209378]
[1765141561544,3.26144647,135.8,135.79,9.378e-05]
[1765141561744,3.26144647,135.8,135.77,0.05533461]
[1765141561944,0.05144647,135.8,135.77,3.31533461]
[1765141562144,0.05144647,135.8,135.77,16.99573089]
[1765141562347,0.05144647,135.8,135.78,3.26]
[1765141563249,3.16144647,135.8,135.78,3.26]
[1765141564748,9.78834647,135.8,135.77,3.24533461]
[1765141564949,3.11,135.79,135.77,3.24533461]
[1765141565150,3.11,135.79,135.77,0.05533461]
[1765141565956,9.7374,135.79,135.77,0.05533461]
[1765141566149,3.11,135.78,135.77,0.05533461]
[1765141571656,3.11,135.76,135.72,3.19]
[1765141571847,3.11,135.75,135.72,3.19]
[1765141572553,9.78757587,135.75,135.72,3.24097861]
[1765141572949,3.11,135.74,135.72,3.24097861]
[1765141574055,3.11,135.73,135.72,0.05097861]
[1765141574960,3.15827587,135.75,135.72,3.24097861]
[1765141576556,0.04827587,135.75,135.72,3.24097861]
[1765141579559,3.31827587,135.75,135.72,3.24097861]
[1765141579755,9.94767587,135.75,135.72,3.24097861]
[1765141581164,9.8999,135.74,135.72,3.24097861]
[1765141581362,3.27,135.73,135.72,0.05097861]
[1765141588572,12.10871989,135.74,135.72,0.05097861]
[1765141589770,3.27,135.73,135.72,0.05097861]
[1765141591873,3.27,135.73,135.66,9.12330709]
[1765141592067,6.8041,135.65,135.64,7.09e-06]
[1765141592373,0.17,135.64,135.58,3.14]
[1765141592558,2.37881989,135.63,135.58,3.14]
[1765141592966,0.04846217,135.62,135.59,3.1934435]
[1765141594469,6.6331,135.68,135.61,3.14]
[1765141594771,2.37881989,135.69,135.63,3.14]
[1765141595362,2.37881989,135.69,135.65,0.05274082]
[1765141595562,0.05464072,135.67,135.65,3.19274082]
[1765141596871,0.05464072,135.67,135.66,5.34881989]
[1765141599068,207.55078635,135.74,135.67,3.14]
[1765141599271,6.8997,135.74,135.7,3.14]
[1765141599872,0.27,135.74,135.7,3.14]
[1765141600068,0.04905496,135.73,135.71,0.05046078]
[1765141600263,0.04905496,135.73,135.71,3.19046078]
[1765141609883,0.04905496,135.73,135.71,5.39928067]
[1765141610182,0.04905496,135.73,135.72,3.2]
[1765141613784,0.32905496,135.73,135.71,3.25046078]
[1765141614083,0.04905496,135.73,135.71,3.25046078]
[1765141618986,6.67945496,135.73,135.71,3.25046078]
[1765141625791,0.27,135.72,135.71,0.05046078]
[1765141626103,2.47881989,135.72,135.71,0.05046078]
[1765141626387,0.27,135.72,135.71,0.05046078]
[1765141638002,3.72370124,135.72,135.71,0.05046078]
[1765141638504,0.22,135.69,135.65,3.29]
[1765141639313,103.1559,135.71,135.65,3.29]
[1765141639314,6.8527,135.68,135.65,3.29]
[1765141639607,6.90771509,135.68,135.65,3.34193739]
[1765141643207,0.22,135.67,135.65,3.34193739]
[1765141644506,6.68771509,135.68,135.65,3.34193739]
[1765141644809,0.22,135.67,135.65,3.34193739]
[1765141645110,6.8533,135.67,135.65,3.34193739]
[1765141645605,0.22,135.66,135.65,0.05193739]
[1765141647104,6.8533,135.67,135.65,3.34193739]
[1765141647308,6.8533,135.67,135.65,0.05193739]
[1765141647607,0.22,135.66,135.65,0.05193739]
[1765141649206,6.6333,135.67,135.65,0.05193739]
[1765141649411,6.8533,135.67,135.65,3.34193739]
[1765141649599,0.05501509,135.68,135.65,3.34193739]
[1765141650211,0.22,135.67,135.65,3.34193739]
[1765141651511,6.8534,135.67,135.65,3.34193739]
[1765141651712,6.6334,135.67,135.65,3.34193739]
[1765141651910,0.05501509,135.68,135.65,3.34193739]
[1765141652310,0.27501509,135.68,135.65,3.34193739]
[1765141655514,0.05501509,135.68,135.65,3.34193739]
[1765141662213,6.6334,135.67,135.65,3.34193739]
[1765141662419,6.8534,135.67,135.65,3.34193739]
[1765141663814,6.8534,135.67,135.65,0.05193739]
[1765141664008,0.22,135.66,135.65,0.05193739]
[1765141672817,6.6334,135.67,135.65,3.11193739]
[1765141673212,0.05501509,135.68,135.65,3.11193739]
[1765141680325,0.05501509,135.68,135.65,16.83921893]
[1765141680531,0.05501509,135.68,135.66,3.06]
[1765141684136,0.05501509,135.68,135.67,3.06]
[1765141685237,103.1414,135.73,135.67,3.06]
[1765141685538,103.3614,135.73,135.67,3.06]
[1765141686343,103.3614,135.73,135.69,3.38588411]
[1765141686344,0.05629315,135.71,135.69,3.38588411]
[1765141686544,6.68779315,135.71,135.69,3.38588411]
[1765141688644,0.05629315,135.71,135.69,3.38588411]
[1765141692647,0.05629315,135.71,135.69,5.59572511]
[1765141692947,0.05629315,135.71,135.7,3.33]
[1765141694249,0.22,135.7,135.69,0.05588411]
[1765141695346,2.429841,135.7,135.69,0.05588411]
[1765141695547,6.90769315,135.71,135.69,0.05588411]
[1765141696146,0.22,135.7,135.69,0.05588411]
[1765141696542,2.429841,135.7,135.69,0.05588411]
[1765141702745,0.22,135.7,135.69,0.05588411]
[1765141702948,9.11753415,135.71,135.69,3.27588411]
[1765141703143,9.11753415,135.71,135.69,0.05588411]
[1765141703546,0.22,135.7,135.69,0.05588411]
[1765141703852,2.26613415,135.71,135.69,3.27588411]
[1765141704152,0.05629315,135.71,135.69,3.27588411]
[1765141709551,0.22,135.77,135.7,3.22]
[1765141709753,3.14,135.73,135.68,13.72728154]
[1765141710054,3.14,135.71,135.66,13.72728154]
[1765141710253,3.14,135.71,135.65,2.209841]
[1765141710254,3.14,135.71,135.65,15.93712254]
[1765141710556,0.05478302,135.69,135.67,0.05481646]
[1765141711252,3.19478302,135.69,135.67,0.05481646]
[1765141712549,9.82728302,135.69,135.67,0.05481646]
[1765141714355,3.14,135.68,135.67,0.05481646]
[1765141716063,5.349841,135.68,135.67,0.05481646]
[1765141726564,3.14,135.66,135.64,3.22]
[1765141727669,3.14,135.66,135.64,3.26675661]
[1765141730473,6.6333,135.67,135.65,3.15]
[1765141734579,10.0033,135.67,135.65,3.15]
[1765141734765,6.6333,135.67,135.65,3.15]
[1765141735284,3.37,135.66,135.64,15.98387915]
[1765141735487,3.37,135.66,135.64,16.92403815]
[1765141735687,3.37,135.66,135.64,3.19675661]
[1765141736388,10.0033,135.67,135.64,3.19675661]
[1765141737390,10.0033,135.67,135.64,16.92403815]
[1765141737790,10.0033,135.67,135.65,3.15]
[1765141737994,3.37,135.66,135.64,16.92403815]
[1765141738678,3.37,135.66,135.64,3.19675661]
[1765141739988,6.6333,135.67,135.64,3.19675661]
[1765141740194,10.0033,135.67,135.65,3.15]
[1765141749395,6.6333,135.67,135.65,3.15]
[1765141749600,0.05478302,135.69,135.67,3.3]
[1765141749800,0.05478302,135.69,135.68,17.07574273]
[1765141750302,3.08,135.74,135.69,3.3]
[1765141750501,3.08,135.74,135.7,17.0711049]
[1765141750801,3.08,135.72,135.68,17.0711049]
[1765141751305,3.13074099,135.71,135.69,0.04753845]
[1765141751601,3.13074099,135.71,135.69,3.34753845]
[1765141751799,0.05074099,135.71,135.69,3.34753845]
[1765141756207,3.13074099,135.71,135.69,0.04753845]
[1765141757504,3.08,135.7,135.69,0.04753845]
[1765141764904,3.17,135.68,135.65,63.0]
[1765141765096,3.17,135.68,135.64,17.0211049]
[1765141765302,3.17,135.68,135.63,17.0211049]
[1765141765806,3.17,135.68,135.63,3.25]
[1765141766009,3.17,135.66,135.64,0.05242852]
[1765141766604,9.8038,135.66,135.64,0.05242852]
[1765141767313,3.17,135.65,135.64,0.05242852]
[1765141769914,3.22095017,135.67,135.64,3.30242852]
[1765141770510,0.05095017,135.67,135.64,3.30242852]
[1765141777719,0.05095017,135.67,135.64,23.70803342]
[1765141778012,3.22095017,135.67,135.65,3.25]
[1765141778314,0.05095017,135.67,135.65,3.25]
[1765141786424,0.05095017,135.67,135.66,66.25]
[1765141798622,0.05095017,135.67,135.66,80.0211049]
[1765141799729,6.6316,135.71,135.66,80.0211049]
[1765141800038,9.9116,135.71,135.67,3.1]
[1765141800937,0.05375156,135.7,135.69,3.1]
[1765141801936,6.6305,135.73,135.7,3.1]
[1765141802234,6.6305,135.73,135.71,3.1]
[1765141803145,0.05276696,135.73,135.71,16.8711049]
[1765141803325,3.21,135.79,135.73,3.1]
[1765141804239,0.05076922,135.77,135.75,3.15170511]
[1765141807348,0.05076922,135.77,135.76,3.1]
[1765141808444,3.21,135.82,135.76,3.1]
[1765141809548,0.05353929,135.8,135.76,3.1]
[1765141811349,0.05353929,135.8,135.77,3.1]
[1765141811643,3.26353929,135.8,135.77,3.1]
[1765141812432,0.05353929,135.8,135.77,3.1]
[1765141812636,0.05353929,135.8,135.79,3.1]
[1765141822154,3.21353929,135.8,135.78,3.34386819]
[1765141822354,3.21353929,135.8,135.78,0.05386819]
[1765141823646,3.16,135.79,135.78,0.05386819]
[1765141831457,3.16,135.77,135.72,2.20709811]
[1765141831754,3.16,135.77,135.73,3.29]
[1765141832452,3.21581872,135.76,135.74,3.34246406]
[1765141833859,0.05581872,135.76,135.74,5.54956217]
[1765141834058,3.16,135.81,135.75,3.29]
[1765141834250,3.16,135.81,135.77,3.29]
[1765141835054,0.04757202,135.8,135.78,0.04879709]
[1765141835250,0.04757202,135.8,135.78,3.33879709]
[1765141838247,0.04757202,135.8,135.78,5.5458952]
[1765141838561,0.04757202,135.8,135.79,3.29]
[1765141839752,3.20757202,135.8,135.78,3.33879709]
[1765141840358,0.04757202,135.8,135.78,3.33879709]
[1765141843867,3.20757202,135.8,135.78,3.33879709]
[1765141844655,3.20757202,135.8,135.78,0.04879709]
[1765141845256,3.16,135.79,135.78,0.04879709]
[1765141849466,5.36709811,135.79,135.78,0.04879709]
[1765141854968,3.16,135.79,135.78,0.04879709]
[1765141860571,3.24,135.78,135.75,9.15125861]
[1765141860777,3.24,135.77,135.73,9.15125861]
[1765141861168,3.24,135.77,135.73,12.23125861]
[1765141861570,3.29368872,135.76,135.74,0.04872003]
[1765141868287,3.29368872,135.76,135.74,3.12872003]
[1765141868585,3.29368872,135.76,135.74,0.04872003]
[1765141872089,3.24,135.74,135.73,6.67806379]
[1765141872297,3.24,135.74,135.7,3.08]
[1765141872482,3.24,135.74,135.67,78.91875074]
[1765141872483,3.24,135.73,135.67,78.91875074]
[1765141872786,3.24,135.7,135.67,62.96]
[1765141873189,3.28792135,135.7,135.67,63.01376102]
[1765141877596,3.24,135.69,135.67,63.01376102]
[1765141878995,3.24,135.69,135.67,66.10376102]
[1765141879394,3.08,135.68,135.67,0.05376102]
[1765141881902,9.7124,135.69,135.67,3.14376102]
[1765141882609,3.08,135.69,135.67,3.14376102]
[1765141882904,3.08,135.69,135.67,0.05376102]
[1765141883103,103.20832135,135.7,135.67,0.05376102]
[1765141883104,9.7127,135.68,135.67,0.05376102]
[1765141889016,3.08,135.65,135.62,3.09]
[1765141890009,3.08,135.65,135.62,3.14490237]
[1765141890214,3.13334343,135.65,135.62,3.14490237]
[1765141892718,0.05334343,135.65,135.62,3.14490237]
[1765141893219,3.13334343,135.65,135.62,3.14490237]
[1765141896125,9.76764343,135.65,135.62,3.14490237]
[1765141896625,3.08,135.64,135.62,0.05490237]
[1765141896817,3.08,135.64,135.62,3.14490237]
[1765141916244,3.08,135.64,135.62,12.25978396]
[1765141919039,3.08,135.64,135.63,3.35]
[1765141919446,3.08,135.64,135.62,12.51978396]
[1765141920247,3.08,135.64,135.63,9.11488159]
[1765141920444,3.12,135.63,135.62,0.05490237]
[1765141928565,3.12,135.63,135.62,0.00213541]
[1765141929162,6.57527197,135.63,135.62,0.00213541]
[1765141929862,69.57527197,135.63,135.62,0.00213541]
[1765141932462,3.12,135.6,135.56,3.06]
[1765141933562,9.7577,135.58,135.57,0.05177772]
[1765141940668,9.7577,135.58,135.52,3.06]
[1765141940669,3.33,135.54,135.49,3.34]
[1765141940863,3.33,135.52,135.49,3.34]
[1765141941673,0.04995122,135.52,135.49,3.39203673]
[1765141941966,0.04995122,135.52,135.51,3.34]
[1765141951075,3.37995122,135.52,135.5,3.34]
[1765141951771,0.04995122,135.52,135.5,3.34]
[1765141953177,10.02065122,135.52,135.5,3.34]
[1765141953581,3.33,135.51,135.5,3.34]
[1765141953977,3.33,135.51,135.49,3.39203673]
[1765141956081,9.9715,135.5,135.49,0.05203673]